bitfinex/quotes_ETHUSD_20250908
["timestamp","ask_amount","ask_price","bid_price","bid_amount"]
[1757355457967,4.5335,4323.1,4323.0,7.57070337]
[1757355458764,4.5335,4323.1,4323.0,14.89370337]
[1757355459367,5.7635,4323.1,4323.0,14.89370337]
[1757355459992,5.7635,4323.1,4323.0,14.89570337]
[1757355460362,5.7635,4323.1,4323.0,15.01090337]
[1757355460978,6.9935,4323.1,4323.0,15.01090337]
[1757355461661,6.9935,4323.1,4323.0,17.01090337]
[1757355462805,8.2235,4323.1,4323.0,17.01090337]
[1757355464209,9.4535,4323.1,4323.0,17.01090337]
[1757355464571,9.4535,4323.1,4323.0,11.13390337]
[1757355464774,9.4535,4323.1,4323.0,15.00990337]
[1757355465400,9.3603,4323.1,4323.0,15.00990337]
[1757355465771,9.3603,4323.1,4323.0,11.13390337]
[1757355466091,10.6835,4323.1,4323.0,15.00990337]
[1757355466500,10.6835,4323.1,4323.0,17.32311179]
[1757355466818,11.9135,4323.1,4323.0,17.32311179]
[1757355466998,1.23,4323.5,4323.4,2.3129944]
[1757355467175,1.23,4323.5,4323.4,6.1889944]
[1757355467376,1.5229,4323.5,4323.4,9.1889944]
[1757355467708,2.8461,4323.5,4323.4,9.99786889]
[1757355468089,4.0761,4323.5,4323.4,9.99786889]
[1757355468890,4.5335,4323.5,4323.4,6.12186889]
[1757355469092,4.5335,4323.5,4323.4,9.3041944]
[1757355469498,5.7635,4323.5,4323.4,9.3041944]
[1757355471072,6.9935,4323.5,4323.4,9.3041944]
[1757355472265,6.9935,4323.5,4323.4,9.3031944]
[1757355472444,8.2235,4323.5,4323.4,9.3031944]
[1757355472646,8.2235,4323.5,4323.4,9.4186487]
[1757355474192,9.4535,4323.5,4323.4,9.4186487]
[1757355474683,8.1303,4323.5,4323.4,9.4186487]
[1757355475014,7.6729,4323.5,4323.4,9.74518264]
[1757355475313,7.6729,4323.5,4323.4,9.4186487]
[1757355475500,9.3603,4323.5,4323.4,9.4186487]
[1757355476687,9.3603,4323.5,4323.4,10.11234566]
[1757355476885,10.5903,4323.5,4323.4,10.11234566]
[1757355478211,10.5913,4323.5,4323.4,10.11234566]
[1757355478411,11.8213,4323.5,4323.4,10.11234566]
[1757355478609,13.1445,4323.5,4323.4,9.4186487]
[1757355479330,11.071,4323.5,4323.4,9.4186487]
[1757355479620,11.3639,4323.5,4323.4,11.1936487]
[1757355479779,12.301,4323.5,4323.4,11.1936487]
[1757355480294,12.5939,4323.5,4323.4,11.1936487]
[1757355480494,13.0513,4323.5,4323.4,7.3186487]
[1757355480796,12.5939,4323.5,4323.4,11.1936487]
[1757355481179,14.2681,4323.5,4323.4,11.1936487]
[1757355481434,13.8239,4323.5,4323.4,11.1936487]
[1757355481730,13.531,4323.5,4323.4,7.3186487]
[1757355481887,13.531,4323.5,4323.4,11.1936487]
[1757355482605,14.761,4323.5,4323.4,11.1936487]
[1757355483183,14.761,4323.5,4323.4,7.3186487]
[1757355483494,14.761,4323.5,4323.4,11.1936487]
[1757355483691,0.001,4323.7,4323.6,2.3128874]
[1757355483891,0.001,4323.7,4323.6,9.1878874]
[1757355484296,0.001,4323.7,4323.6,14.7338874]
[1757355484494,0.001,4323.7,4323.6,15.0305874]
[1757355484718,0.001,4323.7,4323.6,14.7338874]
[1757355485346,1.231,4323.7,4323.6,14.7338874]
[1757355485479,1.231,4323.7,4323.6,45.0305874]
[1757355485688,2.485,4323.8,4323.7,5.92072694]
[1757355485986,2.485,4323.8,4323.7,35.92072694]
[1757355486176,0.001,4324.0,4323.8,2.31278042]
[1757355486382,1.25,4323.9,4323.8,39.18678042]
[1757355486617,1.25,4323.9,4323.8,39.48348042]
[1757355487739,2.48,4323.9,4323.8,39.48348042]
[1757355488999,2.48,4323.9,4323.8,39.18678042]
[1757355489231,3.71,4323.9,4323.8,39.18678042]
[1757355489636,0.001,4324.2,4323.9,33.0]
[1757355489820,0.001,4324.2,4323.8,7.09137345]
[1757355489821,0.001,4324.2,4324.1,5.31261996]
[1757355490053,0.4452,4324.2,4324.1,5.42781996]
[1757355490253,0.7304,4324.2,4324.1,5.42781996]
[1757355490622,1.9604,4324.2,4324.1,5.42781996]
[1757355491763,3.3697,4324.2,4324.1,9.30181996]
[1757355491918,4.59810121,4324.2,4324.1,9.30181996]
[1757355493382,3.9752,4324.2,4324.1,9.30181996]
[1757355493545,4.4194,4324.2,4324.1,9.30181996]
[1757355493927,3.9752,4324.2,4324.1,9.30181996]
[1757355494638,5.6494,4324.2,4324.1,9.30181996]
[1757355495036,4.92,4324.2,4324.1,9.18661996]
[1757355495269,4.92,4324.2,4324.1,9.30181996]
[1757355495567,5.2052,4324.2,4324.1,9.30181996]
[1757355495869,4.921,4324.2,4324.1,9.87987905]
[1757355496052,6.151,4324.2,4324.1,10.20641299]
[1757355497074,6.151,4324.2,4324.1,40.20641299]
[1757355497444,7.381,4324.2,4324.1,40.20641299]
[1757355497648,7.381,4324.2,4324.1,39.87987905]
[1757355498543,7.381,4324.2,4324.1,39.58317905]
[1757355498722,8.611,4324.2,4324.1,39.58317905]
[1757355500153,9.841,4324.2,4324.1,39.58317905]
[1757355500522,9.841,4324.2,4324.1,39.87987905]
[1757355501670,11.071,4324.2,4324.1,39.30181996]
[1757355503071,12.301,4324.2,4324.1,39.30181996]
[1757355503754,12.301,4324.2,4324.1,35.42781996]
[1757355503755,14.4397,4324.2,4324.1,35.42781996]
[1757355503943,14.4397,4324.2,4324.1,9.30081996]
[1757355504330,14.2604,4324.2,4324.1,9.30081996]
[1757355505559,15.6697,4324.2,4324.1,9.30081996]
[1757355505727,16.8997,4324.2,4324.1,9.30081996]
[1757355507145,18.1297,4324.2,4324.1,9.30081996]
[1757355508533,19.3597,4324.2,4324.1,9.30081996]
[1757355508733,19.3597,4324.2,4324.1,5.42781996]
[1757355508986,21.29577,4324.2,4324.1,9.18461996]
[1757355509476,19.15707,4324.2,4324.1,9.18461996]
[1757355509633,17.9504,4324.2,4324.1,5.31261996]
[1757355509973,17.9504,4324.2,4324.1,9.18461996]
[1757355509974,19.3597,4324.2,4324.1,9.18461996]
[1757355510194,20.5897,4324.2,4324.1,9.18461996]
[1757355511076,20.5897,4324.2,4323.9,2.42791227]
[1757355511234,20.5897,4324.2,4324.1,2.31261996]
[1757355511583,23.99397,4324.2,4324.1,2.31261996]
[1757355511738,23.99397,4324.2,4324.1,9.18461996]
[1757355512783,25.22397,4324.2,4324.1,9.18461996]
[1757355512937,23.1649,4324.2,4324.1,9.18461996]
[1757355513280,20.911,4324.2,4324.1,9.59631996]
[1757355513469,20.911,4324.2,4324.1,9.87767905]
[1757355513778,21.2025,4324.2,4324.1,5.42781996]
[1757355513934,20.911,4324.2,4324.1,9.30181996]
[1757355514133,22.141,4324.2,4324.1,9.59831996]
[1757355515575,23.371,4324.2,4324.1,9.59831996]
[1757355516843,23.371,4324.2,4324.1,9.30181996]
[1757355517053,24.8925,4324.2,4324.1,5.42981996]
[1757355517252,25.3399,4324.2,4324.1,9.30181996]
[1757355517748,24.601,4324.2,4324.1,9.30181996]
[1757355518400,26.1225,4324.2,4324.1,5.42981996]
[1757355518597,28.0935,4324.2,4324.1,9.30181996]
[1757355518781,26.1225,4324.2,4324.1,9.30181996]
[1757355519154,26.5699,4324.2,4324.1,9.30181996]
[1757355519556,26.5699,4324.2,4324.1,9.59831996]
[1757355519557,25.831,4324.2,4324.1,9.59831996]
[1757355519851,27.061,4324.2,4324.1,9.59831996]
[1757355521056,28.291,4324.2,4324.1,9.59831996]
[1757355522700,29.521,4324.2,4324.1,9.59831996]
[1757355523571,29.521,4324.2,4324.1,11.06101996]
[1757355523777,29.521,4324.2,4324.1,9.59831996]
[1757355523994,30.751,4324.2,4324.1,5.72631996]
[1757355524162,30.751,4324.2,4324.1,9.30181996]
[1757355525118,30.751,4324.2,4324.1,5.42981996]
[1757355525119,33.0135,4324.2,4324.1,5.42981996]
[1757355525319,34.2435,4324.2,4324.1,5.42981996]
[1757355525465,34.2435,4324.2,4324.1,9.30181996]
[1757355526272,32.7199,4324.2,4324.1,9.30181996]
[1757355526750,33.9499,4324.2,4324.1,9.30181996]
[1757355527247,35.4735,4324.2,4324.1,9.30181996]
[1757355527600,35.4735,4324.2,4324.1,11.07581996]
[1757355528142,36.7035,4324.2,4324.1,11.07581996]
[1757355528709,36.7035,4324.2,4324.1,7.20381996]
[1757355528914,36.7035,4324.2,4324.1,7.08861996]
[1757355529113,36.7035,4324.2,4324.1,10.95961996]
[1757355529325,37.9335,4324.2,4324.1,10.95961996]
[1757355529733,37.9335,4324.2,4324.1,7.08861996]
[1757355529916,39.59859062,4324.2,4324.1,7.08861996]
[1757355530112,39.59859062,4324.2,4324.1,10.95961996]
[1757355530645,40.82859062,4324.2,4324.1,10.95961996]
[1757355532104,42.05859062,4324.2,4324.1,10.95961996]
[1757355532308,40.3935,4324.2,4324.1,10.95961996]
[1757355533249,38.131,4324.2,4324.1,11.25611996]
[1757355533439,39.361,4324.2,4324.1,11.37131996]
[1757355533776,39.361,4324.2,4324.1,13.27851996]
[1757355534294,39.361,4324.2,4324.1,9.40751996]
[1757355534459,39.361,4324.2,4324.1,13.27851996]
[1757355534976,40.591,4324.2,4324.1,13.27851996]
[1757355536001,40.591,4324.2,4324.1,11.37131996]
[1757355536298,41.821,4324.2,4324.1,11.37131996]
[1757355537793,43.051,4324.2,4324.1,11.37131996]
[1757355538989,43.051,4324.2,4324.1,12.06490946]
[1757355539270,44.281,4324.2,4324.1,12.06490946]
[1757355539710,44.281,4324.2,4324.1,13.52760946]
[1757355540092,44.281,4324.2,4324.1,13.97210946]
[1757355540443,44.281,4324.2,4324.1,43.97210946]
[1757355540564,45.511,4324.2,4324.1,43.97210946]
[1757355542211,46.741,4324.2,4324.1,43.97210946]
[1757355543134,47.056,4324.2,4324.1,7.89740946]
[1757355543272,47.056,4324.2,4324.1,11.76840946]
[1757355543607,47.971,4324.2,4324.1,11.76840946]
[1757355544312,50.2279,4324.2,4324.1,11.76840946]
[1757355544531,48.7515,4324.2,4324.1,11.76840946]
[1757355544736,49.516,4324.2,4324.1,11.76840946]
[1757355545034,51.4579,4324.2,4324.1,7.89740946]
[1757355545316,51.4579,4324.2,4324.1,7.20381996]
[1757355545519,53.60682698,4324.2,4324.1,8.647]
[1757355545752,53.60682698,4324.2,4324.1,4.776]
[1757355545953,53.60682698,4324.2,4324.1,8.646]
[1757355546102,54.83682698,4324.2,4324.1,8.646]
[1757355546307,54.83682698,4324.2,4324.1,4.776]
[1757355546649,54.83682698,4324.2,4324.1,8.646]
[1757355547503,56.06682698,4324.2,4324.1,8.646]
[1757355548608,56.06682698,4324.2,4324.1,10.95861996]
[1757355548807,57.29682698,4324.2,4324.1,7.08861996]
[1757355549047,57.29682698,4324.2,4324.1,10.95861996]
[1757355549435,55.35492698,4324.2,4324.1,7.08861996]
[1757355549635,57.29682698,4324.2,4324.1,8.646]
[1757355549946,57.29682698,4324.2,4324.1,10.95861996]
[1757355550125,58.52682698,4324.2,4324.1,10.95861996]
[1757355550629,58.52682698,4324.2,4324.1,4.776]
[1757355550835,58.52682698,4324.2,4324.1,8.646]
[1757355551043,58.52682698,4324.2,4324.1,10.95861996]
[1757355551610,59.75682698,4324.2,4324.1,7.08861996]
[1757355551810,59.75682698,4324.2,4324.1,10.95861996]
[1757355552748,59.75682698,4324.2,4324.1,11.25231996]
[1757355552749,55.351,4324.2,4324.1,11.25231996]
[1757355552907,56.581,4324.2,4324.1,10.95861996]
[1757355553114,56.896,4324.2,4324.1,10.95861996]
[1757355553528,56.581,4324.2,4324.1,10.95861996]
[1757355553810,56.581,4324.2,4324.1,11.25231996]
[1757355554156,56.896,4324.2,4324.1,10.95861996]
[1757355554331,58.126,4324.2,4324.1,10.95861996]
[1757355554654,58.126,4324.2,4324.1,13.23451996]
[1757355554655,57.811,4324.2,4324.1,13.23451996]
[1757355554824,57.811,4324.2,4324.1,9.47971996]
[1757355555012,57.811,4324.2,4324.1,9.04661996]
[1757355555216,57.811,4324.2,4324.1,13.34971996]
[1757355555636,59.041,4324.2,4324.1,12.91661996]
[1757355555843,59.041,4324.2,4324.1,13.34971996]
[1757355557120,60.271,4324.2,4324.1,13.34971996]
[1757355558450,61.501,4324.2,4324.1,13.34971996]
[1757355559775,62.731,4324.2,4324.1,13.34971996]
[1757355560273,62.731,4324.2,4324.1,9.47971996]
[1757355560474,62.731,4324.2,4324.1,13.34971996]
[1757355560770,62.731,4324.2,4324.1,12.91661996]
[1757355561177,63.961,4324.2,4324.1,12.91661996]
[1757355561944,63.961,4324.2,4324.1,11.36751996]
[1757355562459,65.506,4324.2,4324.1,8.07381996]
[1757355562631,65.506,4324.2,4324.1,11.07381996]
[1757355563031,65.191,4324.2,4324.1,11.07381996]
[1757355563448,65.191,4324.2,4324.1,7.20381996]
[1757355563658,65.191,4324.2,4324.1,12.06015436]
[1757355563844,66.421,4324.2,4324.1,12.06015436]
[1757355564051,66.736,4324.2,4324.1,11.76645436]
[1757355565574,67.966,4324.2,4324.1,11.76645436]
[1757355566680,67.651,4324.2,4324.1,11.76645436]
[1757355566971,68.881,4324.2,4324.1,11.76645436]
[1757355567353,68.881,4324.2,4324.1,12.06015436]
[1757355567556,68.881,4324.2,4324.1,11.76645436]
[1757355567959,69.196,4324.2,4324.1,11.76645436]
[1757355568364,70.426,4324.2,4324.1,11.76645436]
[1757355568564,70.426,4324.2,4324.1,17.31145436]
[1757355569093,72.3679,4324.2,4324.1,13.44245436]
[1757355569262,74.75100797,4324.2,4324.1,11.19]
[1757355569664,74.75100797,4324.2,4324.1,16.50261996]
[1757355569861,73.72410797,4324.2,4324.1,16.50261996]
[1757355570077,71.7712,4324.2,4324.1,16.50261996]
[1757355570298,72.1215,4324.2,4324.1,16.50261996]
[1757355571358,73.3515,4324.2,4324.1,16.50261996]
[1757355571550,74.8359,4324.2,4324.1,12.63361996]
[1757355571905,74.8359,4324.2,4324.1,16.50261996]
[1757355572893,76.0659,4324.2,4324.1,16.50261996]
[1757355573214,76.0659,4324.2,4324.1,12.63361996]
[1757355573513,76.0659,4324.2,4324.1,16.50261996]
[1757355573685,77.98490179,4324.2,4324.1,16.50261996]
[1757355574075,79.21490179,4324.2,4324.1,16.50261996]
[1757355574501,79.21490179,4324.2,4324.1,10.321]
[1757355574704,79.21490179,4324.2,4324.1,16.50261996]
[1757355574899,79.21490179,4324.2,4324.1,14.19]
[1757355575104,79.21490179,4324.2,4324.1,16.50261996]
[1757355575507,80.44490179,4324.2,4324.1,16.50261996]
[1757355576425,80.44490179,4324.2,4324.1,12.63361996]
[1757355576725,80.44490179,4324.2,4324.1,16.50261996]
[1757355577018,81.67490179,4324.2,4324.1,16.50261996]
[1757355578198,82.90490179,4324.2,4324.1,16.50261996]
[1757355579410,82.90490179,4324.2,4324.1,12.63361996]
[1757355579721,84.13490179,4324.2,4324.1,16.50261996]
[1757355581228,82.65050179,4324.2,4324.1,16.50261996]
[1757355581402,83.88050179,4324.2,4324.1,16.50261996]
[1757355583029,86.56970179,4324.2,4324.1,16.50261996]
[1757355583251,86.56970179,4324.2,4324.1,14.19]
[1757355583640,86.56970179,4324.2,4324.1,16.50261996]
[1757355584157,84.33000179,4324.2,4324.1,16.50261996]
[1757355584354,83.7562,4324.2,4324.1,16.81661996]
[1757355585322,84.0606,4324.2,4324.1,16.50261996]
[1757355585723,85.2906,4324.2,4324.1,16.50261996]
[1757355586041,85.7415,4324.2,4324.1,16.50261996]
[1757355586720,85.7415,4324.2,4324.1,12.63361996]
[1757355586955,85.7415,4324.2,4324.1,16.50261996]
[1757355587141,86.9715,4324.2,4324.1,16.50261996]
[1757355587622,86.5206,4324.2,4324.1,16.50261996]
[1757355587821,86.2162,4324.2,4324.1,16.50261996]
[1757355588259,86.2162,4324.2,4324.1,16.81661996]
[1757355588573,87.7506,4324.2,4324.1,16.50261996]
[1757355588723,87.4462,4324.2,4324.1,16.50261996]
[1757355589372,87.4462,4324.2,4324.1,16.50161996]
[1757355589570,87.4462,4324.2,4324.1,16.81561996]
[1757355589781,88.6762,4324.2,4324.1,16.81561996]
[1757355590474,88.6762,4324.2,4324.1,16.50161996]
[1757355591021,93.18380797,4324.2,4324.1,10.321]
[1757355591265,94.41380797,4324.2,4324.1,16.50161996]
[1757355591580,94.41380797,4324.2,4324.1,14.189]
[1757355591762,95.20580797,4324.2,4324.1,10.321]
[1757355591928,95.20580797,4324.2,4324.1,14.189]
[1757355592564,96.43580797,4324.2,4324.1,14.189]
[1757355593946,96.43580797,4324.2,4324.1,16.81561996]
[1757355593947,94.19610797,4324.2,4324.1,16.81561996]
[1757355594140,95.42610797,4324.2,4324.1,16.50161996]
[1757355594494,94.93850797,4324.2,4324.1,16.50161996]
[1757355594829,95.38940797,4324.2,4324.1,14.189]
[1757355595028,96.87380797,4324.2,4324.1,14.189]
[1757355595843,98.10380797,4324.2,4324.1,14.189]
[1757355597570,99.33380797,4324.2,4324.1,10.321]
[1757355597871,100.12580797,4324.2,4324.1,14.189]
[1757355598304,102.43837445,4324.2,4324.1,1.776]
[1757355598586,102.43837445,4324.2,4324.1,5.644]
[1757355599030,103.66837445,4324.2,4324.1,5.644]
[1757355600159,99.11610797,4324.2,4324.1,5.644]
[1757355600341,104.89837445,4324.2,4324.1,5.644]
[1757355600540,102.58580797,4324.2,4324.1,5.644]
[1757355601090,104.89837445,4324.2,4324.1,1.776]
[1757355601436,105.395197,4324.2,4324.1,3.578]
[1757355601678,106.625197,4324.2,4324.1,0.002]
[1757355603197,107.855197,4324.2,4324.1,0.002]
[1757355603510,111.723197,4324.2,4324.1,0.002]
[1757355604012,107.24317445,4324.2,4324.1,0.002]
[1757355604313,106.45117445,4324.2,4324.1,0.002]
[1757355604516,108.47317445,4324.2,4324.1,0.002]
[1757355604690,108.47317445,4324.2,4324.1,3.87]
[1757355606101,109.70317445,4324.2,4324.1,3.87]
[1757355607009,109.70317445,4324.2,4324.1,0.002]
[1757355607168,109.70317445,4324.2,4324.1,3.87]
[1757355607715,110.93317445,4324.2,4324.1,3.87]
[1757355608873,112.16317445,4324.2,4324.1,3.87]
[1757355610309,113.39317445,4324.2,4324.1,3.87]
[1757355611075,111.45787445,4324.2,4324.1,3.87]
[1757355611498,109.14530797,4324.2,4324.1,3.87]
[1757355611689,107.011,4324.2,4324.1,4.1653]
[1757355611909,107.803,4324.2,4324.1,6.0231]
[1757355612618,107.803,4324.2,4324.1,4.1653]
[1757355612820,107.803,4324.2,4324.1,3.87]
[1757355612994,109.033,4324.2,4324.1,3.87]
[1757355614109,109.033,4324.2,4324.1,4.1653]
[1757355614281,110.263,4324.2,4324.1,8.5673]
[1757355614485,110.263,4324.2,4324.1,11.33571996]
[1757355614691,110.263,4324.2,4324.1,9.0231]
[1757355616003,109.471,4324.2,4324.1,11.33571996]
[1757355616338,110.8162,4324.2,4324.1,11.33571996]
[1757355617730,112.0462,4324.2,4324.1,11.33571996]
[1757355618994,113.2762,4324.2,4324.1,11.33571996]
[1757355620617,114.5062,4324.2,4324.1,11.33571996]
[1757355622106,115.7362,4324.2,4324.1,11.33571996]
[1757355622513,115.7362,4324.2,4324.1,10.87991996]
[1757355622761,115.7362,4324.2,4324.1,9.47791996]
[1757355623531,116.9662,4324.2,4324.1,11.33571996]
[1757355624540,116.851,4324.2,4324.1,11.33571996]
[1757355625039,118.081,4324.2,4324.1,12.02942012]
[1757355625940,118.081,4324.2,4324.1,10.16962012]
[1757355626347,119.311,4324.2,4324.1,10.16962012]
[1757355627740,120.541,4324.2,4324.1,10.16962012]
[1757355628816,120.84,4324.2,4324.1,6.868]
[1757355629019,122.07,4324.2,4324.1,9.18061996]
[1757355630427,123.001,4324.2,4324.1,10.87791996]
[1757355630854,123.001,4324.2,4324.1,11.33371996]
[1757355631520,124.231,4324.2,4324.1,11.33371996]
[1757355632438,124.231,4324.2,4324.1,9.18061996]
[1757355632637,124.5292,4324.2,4324.1,9.18061996]
[1757355633014,125.7592,4324.2,4324.1,10.95561996]
[1757355634446,126.9892,4324.2,4324.1,10.95561996]
[1757355634650,126.9892,4324.2,4324.1,8.643]
[1757355634833,129.40556223,4324.2,4324.1,4.777]
[1757355635039,130.19756223,4324.2,4324.1,1.777]
[1757355635241,132.51012871,4324.2,4324.1,5.642]
[1757355635435,130.19756223,4324.2,4324.1,8.642]
[1757355635661,131.42756223,4324.2,4324.1,8.642]
[1757355635966,133.74012871,4324.2,4324.1,8.642]
[1757355637158,132.65756223,4324.2,4324.1,8.642]
[1757355638289,134.97012871,4324.2,4324.1,8.642]
[1757355638573,136.20012871,4324.2,4324.1,8.642]
[1757355638773,133.88756223,4324.2,4324.1,8.642]
[1757355639270,136.20012871,4324.2,4324.1,5.642]
[1757355639933,137.43012871,4324.2,4324.1,5.642]
[1757355641575,138.66012871,4324.2,4324.1,5.642]
[1757355641874,138.66012871,4324.2,4324.1,1.777]
[1757355642075,138.66012871,4324.2,4324.1,0.002]
[1757355642436,139.15605819,4324.2,4324.1,0.002]
[1757355642640,143.02105819,4324.2,4324.1,0.002]
[1757355642976,144.25105819,4324.2,4324.1,0.002]
[1757355643180,143.75512871,4324.2,4324.1,0.002]
[1757355643597,139.89012871,4324.2,4324.1,0.002]
[1757355643816,138.01552871,4324.2,4324.1,0.002]
[1757355644109,138.48202871,4324.2,4324.1,0.002]
[1757355644256,139.71202871,4324.2,4324.1,0.002]
[1757355644452,136.93296223,4324.2,4324.1,0.002]
[1757355644689,136.63476223,4324.2,4324.1,0.002]
[1757355645198,139.24552871,4324.2,4324.1,0.002]
[1757355645555,136.93296223,4324.2,4324.1,0.002]
[1757355645792,137.86476223,4324.2,4324.1,0.2952]
[1757355646008,138.16296223,4324.2,4324.1,0.002]
[1757355646210,142.35012871,4324.2,4324.1,0.002]
[1757355646416,142.35012871,4324.2,4324.1,3.867]
[1757355647108,143.58012871,4324.2,4324.1,3.867]
[1757355648505,144.81012871,4324.2,4324.1,3.867]
[1757355649933,144.81012871,4324.2,4324.1,3.002]
[1757355650231,146.04012871,4324.2,4324.1,6.867]
[1757355651514,146.04012871,4324.2,4324.1,3.002]
[1757355651697,147.27012871,4324.2,4324.1,3.002]
[1757355653125,148.50012871,4324.2,4324.1,3.002]
[1757355654501,149.73012871,4324.2,4324.1,6.867]
[1757355655697,150.49362871,4324.2,4324.1,6.867]
[1757355655923,146.5491,4324.2,4324.1,6.867]
[1757355656127,147.6393,4324.2,4324.1,6.867]
[1757355656486,148.1058,4324.2,4324.1,6.867]
[1757355656688,148.1058,4324.2,4324.1,7.1602]
[1757355656689,146.5491,4324.2,4324.1,7.1602]
[1757355657087,148.5711,4324.2,4324.1,7.1602]
[1757355657288,147.7791,4324.2,4324.1,7.1602]
[1757355657950,148.5711,4324.2,4324.1,7.1602]
[1757355658312,147.163,4324.2,4324.1,7.1602]
[1757355658498,148.393,4324.2,4324.1,7.1602]
[1757355659710,147.601,4324.2,4324.1,9.92111996]
[1757355659894,148.831,4324.2,4324.1,9.92111996]
[1757355661304,150.061,4324.2,4324.1,9.92111996]
[1757355662757,150.061,4324.2,4324.1,10.03631996]
[1757355662935,135.07012209,4324.2,4324.1,10.03631996]
[1757355663597,135.07012209,4324.2,4324.1,10.20673261]
[1757355664443,136.30012209,4324.2,4324.1,10.20673261]
[1757355664754,136.30012209,4324.2,4324.1,40.20673261]
[1757355664945,136.30012209,4324.2,4324.1,10.20673261]
[1757355665846,137.53012209,4324.2,4324.1,10.20673261]
[1757355666822,137.53012209,4324.2,4324.1,10.90030447]
[1757355667239,138.76012209,4324.2,4324.1,10.90030447]
[1757355668664,139.99012209,4324.2,4324.1,10.90030447]
[1757355669936,141.22012209,4324.2,4324.1,10.90030447]
[1757355670750,141.22012209,4324.2,4324.1,7.03530447]
[1757355670956,141.22012209,4324.2,4324.1,10.89830447]
[1757355671381,142.45012209,4324.2,4324.1,10.89830447]
[1757355671526,142.45012209,4324.2,4324.1,7.03530447]
[1757355671863,142.45012209,4324.2,4324.1,10.89830447]
[1757355672819,143.68012209,4324.2,4324.1,10.89830447]
[1757355673064,143.68012209,4324.2,4324.1,40.89830447]
[1757355674121,144.91012209,4324.2,4324.1,40.89830447]
[1757355674851,138.90943241,4324.2,4324.1,40.89830447]
[1757355675367,140.13943241,4324.2,4324.1,40.89830447]
[1757355676875,141.36943241,4324.2,4324.1,40.89830447]
[1757355677275,141.36943241,4324.2,4324.1,37.03530447]
[1757355677578,141.36943241,4324.2,4324.1,40.89730447]
[1757355678458,142.59943241,4324.2,4324.1,36.58700447]
[1757355678666,142.59943241,4324.2,4324.1,40.44900447]
[1757355679553,142.59943241,4324.2,4324.1,10.44900447]
[1757355679986,143.82943241,4324.2,4324.1,10.44900447]
[1757355681358,145.05943241,4324.2,4324.1,10.44900447]
[1757355683188,145.82893241,4324.2,4324.1,10.15580447]
[1757355683363,147.05893241,4324.2,4324.1,6.98539182]
[1757355683683,147.05893241,4324.2,4324.1,9.98539182]
[1757355684297,146.58683241,4324.2,4324.1,9.98539182]
[1757355684946,147.81783241,4324.2,4324.1,9.98539182]
[1757355686057,148.28993241,4324.2,4324.1,9.98539182]
[1757355686258,148.28993241,4324.2,4324.1,3.81077186]
[1757355686259,148.6643254,4324.2,4324.1,3.81077186]
[1757355686491,150.0095254,4324.2,4324.1,7.55757186]
[1757355686959,150.0095254,4324.2,4324.1,9.87019182]
[1757355687151,150.0095254,4324.2,4324.1,7.55757186]
[1757355687354,150.0095254,4324.2,4324.1,9.87019182]
[1757355687585,148.75043241,4324.2,4324.1,9.87019182]
[1757355687891,149.98043241,4324.2,4324.1,9.87019182]
[1757355688120,150.27783241,4324.2,4324.1,9.87019182]
[1757355688597,149.98043241,4324.2,4324.1,10.15799182]
[1757355688782,149.98043241,4324.2,4324.1,10.27319182]
[1757355689196,151.21043241,4324.2,4324.1,12.04719182]
[1757355690052,151.21043241,4324.2,4324.1,12.22086363]
[1757355690247,151.21043241,4324.2,4324.1,12.66456363]
[1757355690462,152.73783241,4324.2,4324.1,11.93206363]
[1757355690685,152.44043241,4324.2,4324.1,11.93206363]
[1757355690860,152.44043241,4324.2,4324.1,12.66356363]
[1757355691194,152.44043241,4324.2,4324.1,42.66356363]
[1757355692184,153.67043241,4324.2,4324.1,42.66356363]
[1757355693287,153.67043241,4324.2,4324.1,8.07106363]
[1757355693492,153.67043241,4324.2,4324.1,11.93206363]
[1757355693493,154.90043241,4324.2,4324.1,11.93206363]
[1757355693649,154.90043241,4324.2,4324.1,12.21956363]
[1757355694151,154.90043241,4324.2,4324.1,12.45076363]
[1757355694497,154.90043241,4324.2,4324.1,12.21956363]
[1757355694997,156.13043241,4324.2,4324.1,12.21956363]
[1757355695897,156.88853241,4324.2,4324.1,2.58477186]
[1757355696203,156.88853241,4324.2,4324.1,8.64319182]
[1757355696204,159.15644038,4324.2,4324.1,8.64319182]
[1757355696402,160.38644038,4324.2,4324.1,8.64319182]
[1757355696714,160.38644038,4324.2,4324.1,11.64319182]
[1757355696715,157.36043241,4324.2,4324.1,11.64319182]
[1757355697504,157.65663241,4324.2,4324.1,11.64319182]
[1757355697661,159.34853241,4324.2,4324.1,11.64319182]
[1757355697855,158.59043241,4324.2,4324.1,11.93069182]
[1757355698399,158.59043241,4324.2,4324.1,11.64319182]
[1757355698616,158.88663241,4324.2,4324.1,11.64319182]
[1757355698798,158.88663241,4324.2,4324.1,7.78219182]
[1757355699010,160.57853241,4324.2,4324.1,11.64319182]
[1757355699305,160.57853241,4324.2,4324.1,11.82072956]
[1757355700800,161.80853241,4324.2,4324.1,11.82072956]
[1757355701865,161.80853241,4324.2,4324.1,11.64319182]
[1757355702061,161.05043241,4324.2,4324.1,11.64319182]
[1757355702414,162.28043241,4324.2,4324.1,11.93069182]
[1757355703407,162.28043241,4324.2,4324.1,12.10127783]
[1757355703589,163.51043241,4324.2,4324.1,12.10127783]
[1757355705003,164.74043241,4324.2,4324.1,12.10127783]
[1757355705215,164.74043241,4324.2,4324.1,12.57597783]
[1757355705562,164.74043241,4324.2,4324.1,42.57597783]
[1757355705882,164.74043241,4324.2,4324.1,42.10127783]
[1757355706067,164.74043241,4324.2,4324.1,42.21647783]
[1757355706490,166.26663241,4324.2,4324.1,41.92897783]
[1757355706876,166.26663241,4324.2,4324.1,8.06797783]
[1757355707075,168.99644038,4324.2,4324.1,11.75839182]
[1757355707278,166.72853241,4324.2,4324.1,11.75839182]
[1757355708024,166.72853241,4324.2,4324.1,7.89739182]
[1757355708227,167.95853241,4324.2,4324.1,11.64319182]
[1757355708373,167.95556502,4324.2,4324.1,9.33057186]